[Event "Late-Titled-Tuesday-Blitz-April-23-2024"]
[Site "Chess.com"]
[Date "2024.04.23"]
[Round "6"]
[White "Mops_2004"]
[Black "Russian_berezka"]
[Result "1-0"]
[WhiteElo "2876"]
[BlackElo "2644"]
[TimeControl "180+1"]
[EndTime "15:07:03 PDT"]
[Termination "Mops_2004 won by resignation"]

1. g3 {[%clk 0:03:00.9]} 1... Nf6 {[%clk 0:02:59]} 2. Bg2 {[%clk 0:03:01.3]}
2... d5 {[%clk 0:02:59.7]} 3. f4 {[%clk 0:03:00.8]} 3... c5 {[%clk 0:02:58.3]}
4. Nf3 {[%clk 0:03:01.1]} 4... e6 {[%clk 0:02:57.3]} 5. O-O {[%clk 0:03:01.2]}
5... b5 {[%clk 0:02:58]} 6. a4 {[%clk 0:02:59.1]} 6... b4 {[%clk 0:02:57.5]} 7.
b3 {[%clk 0:02:59.5]} 7... Bb7 {[%clk 0:02:54.4]} 8. Bb2 {[%clk 0:02:59.8]} 8...
Be7 {[%clk 0:02:52.5]} 9. e3 {[%clk 0:03:00]} 9... O-O {[%clk 0:02:50.6]} 10.
Qe2 {[%clk 0:03:00.3]} 10... Nbd7 {[%clk 0:02:40.7]} 11. d3 {[%clk 0:03:00.5]}
11... a5 {[%clk 0:02:28.9]} 12. Nbd2 {[%clk 0:03:00.1]} 12... Nb6 {[%clk
0:02:22.4]} 13. Ne5 {[%clk 0:02:54.2]} 13... Qc7 {[%clk 0:02:20.3]} 14. g4
{[%clk 0:02:50]} 14... Ne8 {[%clk 0:02:04.7]} 15. g5 {[%clk 0:02:46.1]} 15...
Nd6 {[%clk 0:02:04.7]} 16. Rf3 {[%clk 0:02:43.8]} 16... f6 {[%clk 0:01:15.6]}
17. gxf6 {[%clk 0:02:40.4]} 17... Bxf6 {[%clk 0:01:16.5]} 18. Rh3 {[%clk
0:02:36.9]} 18... Nf5 {[%clk 0:01:10.8]} 19. Ndf3 {[%clk 0:02:22.1]} 19... c4
{[%clk 0:01:06.8]} 20. e4 {[%clk 0:01:59.9]} 20... dxe4 {[%clk 0:00:57.5]} 21.
dxe4 {[%clk 0:01:59.7]} 21... c3 {[%clk 0:00:57.9]} 22. Bc1 {[%clk 0:01:59.5]}
22... Qc5+ {[%clk 0:00:40.8]} 23. Kh1 {[%clk 0:01:55.6]} 23... Ba6 {[%clk
0:00:41.4]} 24. Qe1 {[%clk 0:01:54.3]} 24... Nd6 {[%clk 0:00:23]} 25. Be3 {[%clk
0:01:53.9]} 25... Qc7 {[%clk 0:00:22.9]} 26. Bxb6 {[%clk 0:01:52.4]} 26... Qxb6
{[%clk 0:00:22.8]} 27. Nd7 {[%clk 0:01:53.1]} 27... Qc7 {[%clk 0:00:22.8]} 28.
Nxf8 {[%clk 0:01:51.4]} 28... Rxf8 {[%clk 0:00:23.5]} 29. e5 {[%clk 0:01:51.8]}
29... Nf5 {[%clk 0:00:22.6]} 30. exf6 {[%clk 0:01:51.6]} 30... Rxf6 {[%clk
0:00:23.5]} 31. Ne5 {[%clk 0:01:50.4]} 31... Nd4 {[%clk 0:00:20.5]} 32. Qh4
{[%clk 0:01:27.8]} 32... h6 {[%clk 0:00:17.2]} 33. Rc1 {[%clk 0:01:26.8]} 33...
Ne2 {[%clk 0:00:16.5]} 34. Rf1 {[%clk 0:01:26.6]} 34... Nd4 {[%clk 0:00:10.8]}
35. Rf2 {[%clk 0:01:27]} 35... Nf5 {[%clk 0:00:10.5]} 36. Qh5 {[%clk 0:01:25.8]}
36... Ne3 {[%clk 0:00:10.3]} 37. Rxe3 {[%clk 0:01:25.5]} 37... Qc5 {[%clk
0:00:08.6]} 38. Qf3 {[%clk 0:01:20]} 1-0

[Event "Late-Titled-Tuesday-Blitz-April-23-2024"]
[Site "Chess.com"]
[Date "2024.04.23"]
[Round "6"]
[White "szachmistrz2500"]
[Black "Airquake"]
[Result "0-1"]
[WhiteElo "2462"]
[BlackElo "2661"]
[TimeControl "180+1"]
[EndTime "15:07:07 PDT"]
[Termination "Airquake won by resignation"]

1. d4 {[%clk 0:03:00.9]} 1... Nf6 {[%clk 0:02:59.9]} 2. Nf3 {[%clk 0:03:00.2]}
2... e6 {[%clk 0:03:00.4]} 3. c4 {[%clk 0:03:00.3]} 3... d5 {[%clk 0:03:00.6]}
4. Nc3 {[%clk 0:02:59.9]} 4... Be7 {[%clk 0:03:00.4]} 5. Bg5 {[%clk 0:02:59.2]}
5... O-O {[%clk 0:03:00.6]} 6. e3 {[%clk 0:02:59.5]} 6... b6 {[%clk 0:03:00.5]}
7. cxd5 {[%clk 0:02:59.1]} 7... exd5 {[%clk 0:03:00.7]} 8. Be2 {[%clk
0:02:56.9]} 8... Bb7 {[%clk 0:03:01.1]} 9. O-O {[%clk 0:02:56.9]} 9... Ne4
{[%clk 0:03:01.6]} 10. Nxe4 {[%clk 0:02:52.1]} 10... dxe4 {[%clk 0:03:01]} 11.
Bxe7 {[%clk 0:02:52.3]} 11... Qxe7 {[%clk 0:03:00.6]} 12. Nd2 {[%clk 0:02:49.1]}
12... Nd7 {[%clk 0:02:58.9]} 13. Nb3 {[%clk 0:02:40.5]} 13... f5 {[%clk
0:02:53.2]} 14. Rc1 {[%clk 0:02:33.4]} 14... Rac8 {[%clk 0:02:52.4]} 15. Bc4+
{[%clk 0:02:19.3]} 15... Kh8 {[%clk 0:02:50]} 16. Qe2 {[%clk 0:02:19.6]} 16...
f4 {[%clk 0:02:45.5]} 17. exf4 {[%clk 0:02:19.7]} 17... Rxf4 {[%clk 0:02:43.9]}
18. Ba6 {[%clk 0:02:14.7]} 18... Bxa6 {[%clk 0:02:21.1]} 19. Qxa6 {[%clk
0:02:14.5]} 19... Rff8 {[%clk 0:02:21.9]} 20. Rfe1 {[%clk 0:02:00.1]} 20... Nf6
{[%clk 0:02:19.8]} 21. h3 {[%clk 0:01:55.5]} 21... Nd5 {[%clk 0:02:17.9]} 22.
Qb7 {[%clk 0:01:42.9]} 22... Rcd8 {[%clk 0:02:12.1]} 23. Nd2 {[%clk 0:01:29.8]}
23... Qb4 {[%clk 0:01:39.8]} 24. Nxe4 {[%clk 0:01:19.8]} 24... Qxb2 {[%clk
0:01:39.6]} 25. Rcd1 {[%clk 0:01:09.8]} 25... Qxa2 {[%clk 0:01:38.6]} 26. Rd2
{[%clk 0:01:09.2]} 26... Qa5 {[%clk 0:01:37.5]} 27. Rde2 {[%clk 0:00:59.9]}
27... Nf4 {[%clk 0:01:37]} 28. Re3 {[%clk 0:00:59.9]} 28... Rxd4 {[%clk
0:01:21.8]} 29. Qxc7 {[%clk 0:00:51.7]} 29... Nd5 {[%clk 0:01:01.6]} 30. Qd6
{[%clk 0:00:34.6]} 30... Qb4 {[%clk 0:01:02.1]} 31. Ra3 {[%clk 0:00:19.2]} 31...
Rxe4 {[%clk 0:00:53.6]} 32. Rxe4 {[%clk 0:00:17]} 32... Qxd6 {[%clk 0:00:53]}
0-1

[Event "Late-Titled-Tuesday-Blitz-April-23-2024"]
[Site "Chess.com"]
[Date "2024.04.23"]
[Round "6"]
[White "Njal28"]
[Black "DeTimmerman"]
[Result "1-0"]
[WhiteElo "3026"]
[BlackElo "2749"]
[TimeControl "180+1"]
[EndTime "15:07:08 PDT"]
[Termination "Njal28 won by resignation"]

1. Nf3 {[%clk 0:03:00.9]} 1... Nf6 {[%clk 0:02:59.6]} 2. b3 {[%clk 0:03:00.7]}
2... e6 {[%clk 0:02:58]} 3. Bb2 {[%clk 0:03:00.8]} 3... d5 {[%clk 0:02:58.1]} 4.
e3 {[%clk 0:03:00.8]} 4... Be7 {[%clk 0:02:58.2]} 5. g4 {[%clk 0:03:00.9]} 5...
O-O {[%clk 0:02:53.4]} 6. g5 {[%clk 0:03:00.9]} 6... Nfd7 {[%clk 0:02:53.5]} 7.
h4 {[%clk 0:02:59.7]} 7... c5 {[%clk 0:02:53.6]} 8. Nc3 {[%clk 0:02:57]} 8...
Nc6 {[%clk 0:02:53.6]} 9. d4 {[%clk 0:02:57.1]} 9... cxd4 {[%clk 0:02:53.2]} 10.
Nxd4 {[%clk 0:02:52.3]} 10... Nxd4 {[%clk 0:02:49.6]} 11. Qxd4 {[%clk
0:02:51.8]} 11... Bc5 {[%clk 0:02:49.7]} 12. Qd2 {[%clk 0:02:49.4]} 12... Qe7
{[%clk 0:02:46.2]} 13. O-O-O {[%clk 0:02:43.1]} 13... Ba3 {[%clk 0:02:46.2]} 14.
f4 {[%clk 0:02:34]} 14... Bxb2+ {[%clk 0:02:38]} 15. Kxb2 {[%clk 0:02:34.9]}
15... Nc5 {[%clk 0:02:38.6]} 16. h5 {[%clk 0:02:32.2]} 16... f6 {[%clk
0:02:34.3]} 17. h6 {[%clk 0:02:14.9]} 17... g6 {[%clk 0:02:32.6]} 18. Qd4 {[%clk
0:02:12.1]} 18... fxg5 {[%clk 0:02:29.9]} 19. fxg5 {[%clk 0:02:13]} 19... b6
{[%clk 0:02:24.5]} 20. Bg2 {[%clk 0:02:09.2]} 20... Bb7 {[%clk 0:02:24.2]} 21.
Rhf1 {[%clk 0:02:05.4]} 21... Rxf1 {[%clk 0:02:17.6]} 22. Rxf1 {[%clk
0:02:06.3]} 22... Rd8 {[%clk 0:02:17.7]} 23. Rf6 {[%clk 0:01:48.8]} 23... Nd7
{[%clk 0:02:07]} 24. Nxd5 {[%clk 0:01:38.7]} 24... Bxd5 {[%clk 0:02:03.3]} 25.
Bxd5 {[%clk 0:01:35.7]} 25... Nxf6 {[%clk 0:02:02.9]} 26. gxf6 {[%clk 0:01:23]}
26... Qc7 {[%clk 0:01:17.4]} 27. f7+ {[%clk 0:00:40.3]} 27... Qxf7 {[%clk
0:01:14.6]} 28. Bxe6 {[%clk 0:00:40.6]} 28... Rxd4 {[%clk 0:00:48]} 29. Bxf7+
{[%clk 0:00:39.6]} 29... Kxf7 {[%clk 0:00:48.9]} 30. exd4 {[%clk 0:00:40.4]}
30... g5 {[%clk 0:00:49.7]} 31. Kc1 {[%clk 0:00:40.9]} 31... Kg6 {[%clk
0:00:50.2]} 32. d5 {[%clk 0:00:40.7]} 1-0

[Event "Late-Titled-Tuesday-Blitz-April-23-2024"]
[Site "Chess.com"]
[Date "2024.04.23"]
[Round "6"]
[White "carokannlover213"]
[Black "Artem_Koval"]
[Result "0-1"]
[WhiteElo "2773"]
[BlackElo "2577"]
[TimeControl "180+1"]
[EndTime "15:07:11 PDT"]
[Termination "Artem_Koval won by checkmate"]

1. e4 {[%clk 0:03:00.9]} 1... c5 {[%clk 0:02:59.6]} 2. Nf3 {[%clk 0:02:59.3]}
2... d6 {[%clk 0:02:59.6]} 3. Bb5+ {[%clk 0:02:57.3]} 3... Nd7 {[%clk
0:02:59.2]} 4. O-O {[%clk 0:02:57.6]} 4... Nf6 {[%clk 0:02:58.8]} 5. Re1 {[%clk
0:02:57.9]} 5... a6 {[%clk 0:02:50.8]} 6. Bf1 {[%clk 0:02:57.7]} 6... e5 {[%clk
0:02:48.4]} 7. c3 {[%clk 0:02:57.4]} 7... Be7 {[%clk 0:02:48.2]} 8. d4 {[%clk
0:02:58]} 8... O-O {[%clk 0:02:45.3]} 9. d5 {[%clk 0:02:57.6]} 9... Re8 {[%clk
0:02:42.1]} 10. a4 {[%clk 0:02:56.6]} 10... Nf8 {[%clk 0:02:40.1]} 11. Na3
{[%clk 0:02:56.3]} 11... Rb8 {[%clk 0:02:39.2]} 12. Bd3 {[%clk 0:02:54]} 12...
Ng6 {[%clk 0:02:38.3]} 13. Bd2 {[%clk 0:02:52.5]} 13... Nh5 {[%clk 0:02:27.6]}
14. g3 {[%clk 0:02:49.1]} 14... Nf6 {[%clk 0:02:24.5]} 15. Kg2 {[%clk
0:02:47.7]} 15... Bd7 {[%clk 0:02:19.1]} 16. b4 {[%clk 0:02:45.6]} 16... Qc8
{[%clk 0:01:54.3]} 17. b5 {[%clk 0:02:39.3]} 17... Bh3+ {[%clk 0:01:52.7]} 18.
Kg1 {[%clk 0:02:23.3]} 18... Nf4 {[%clk 0:01:16.9]} 19. Bf1 {[%clk 0:02:03.4]}
19... Bxf1 {[%clk 0:01:15.3]} 20. Rxf1 {[%clk 0:02:04.3]} 20... Nh3+ {[%clk
0:01:09.6]} 21. Kg2 {[%clk 0:01:59.1]} 21... Nxe4 {[%clk 0:01:07.7]} 22. Be3
{[%clk 0:01:52.1]} 22... Nhg5 {[%clk 0:00:49.6]} 23. h4 {[%clk 0:01:50.5]} 23...
Qh3+ {[%clk 0:00:46.7]} 24. Kg1 {[%clk 0:01:48.7]} 24... Nxc3 {[%clk 0:00:23]}
25. Nxg5 {[%clk 0:01:42.9]} 25... Bxg5 {[%clk 0:00:21.4]} 26. Qf3 {[%clk
0:00:36]} 26... e4 {[%clk 0:00:21.4]} 27. Qg2 {[%clk 0:00:36.2]} 27... Ne2#
{[%clk 0:00:21.2]} 0-1

[Event "Late-Titled-Tuesday-Blitz-April-23-2024"]
[Site "Chess.com"]
[Date "2024.04.23"]
[Round "6"]
[White "JoakimVonAnd"]
[Black "stollenmonster"]
[Result "1/2-1/2"]
[WhiteElo "2713"]
[BlackElo "2920"]
[TimeControl "180+1"]
[EndTime "15:07:19 PDT"]
[Termination "Game drawn by repetition"]

1. d4 {[%clk 0:03:00.9]} 1... Nf6 {[%clk 0:02:59.4]} 2. c4 {[%clk 0:03:01.3]}
2... e6 {[%clk 0:02:59.7]} 3. Nc3 {[%clk 0:03:01.8]} 3... d5 {[%clk 0:03:00.3]}
4. cxd5 {[%clk 0:03:01.5]} 4... Nxd5 {[%clk 0:03:00.9]} 5. e4 {[%clk 0:02:58]}
5... Nxc3 {[%clk 0:03:01.4]} 6. bxc3 {[%clk 0:02:58.9]} 6... b6 {[%clk
0:03:01.6]} 7. Nf3 {[%clk 0:02:56.9]} 7... Bb7 {[%clk 0:03:02]} 8. Bd3 {[%clk
0:02:56.9]} 8... Nd7 {[%clk 0:03:02.5]} 9. O-O {[%clk 0:02:56.7]} 9... Be7
{[%clk 0:03:03.1]} 10. Qe2 {[%clk 0:02:55.9]} 10... c5 {[%clk 0:03:01.1]} 11.
Rd1 {[%clk 0:02:54.5]} 11... cxd4 {[%clk 0:03:00.7]} 12. cxd4 {[%clk 0:02:54.5]}
12... O-O {[%clk 0:03:00.5]} 13. Bf4 {[%clk 0:02:48.3]} 13... Rc8 {[%clk
0:02:55.9]} 14. a4 {[%clk 0:02:46.6]} 14... Bb4 {[%clk 0:02:54.2]} 15. Rab1
{[%clk 0:02:43]} 15... Qe7 {[%clk 0:02:47]} 16. Bg5 {[%clk 0:02:37.2]} 16... f6
{[%clk 0:02:46.5]} 17. Bf4 {[%clk 0:02:33.1]} 17... Rfd8 {[%clk 0:02:38.2]} 18.
h4 {[%clk 0:02:24.7]} 18... a5 {[%clk 0:02:37.4]} 19. h5 {[%clk 0:02:01.6]}
19... e5 {[%clk 0:02:17.5]} 20. dxe5 {[%clk 0:01:43.1]} 20... Nxe5 {[%clk
0:02:18.4]} 21. Nxe5 {[%clk 0:01:21.8]} 21... fxe5 {[%clk 0:02:19.3]} 22. Be3
{[%clk 0:01:21.9]} 22... Qf6 {[%clk 0:02:13.4]} 23. h6 {[%clk 0:01:21.5]} 23...
gxh6 {[%clk 0:02:09.6]} 24. Bc4+ {[%clk 0:01:12.4]} 24... Kh8 {[%clk 0:02:08.1]}
25. Bd5 {[%clk 0:01:12.9]} 25... Bxd5 {[%clk 0:02:00.1]} 26. exd5 {[%clk
0:01:13.8]} 26... Rg8 {[%clk 0:01:47.8]} 27. d6 {[%clk 0:01:06.8]} 27... Qf5
{[%clk 0:01:47]} 28. Bxb6 {[%clk 0:00:59.2]} 28... Rxg2+ {[%clk 0:00:20.1]} 29.
Kxg2 {[%clk 0:01:00.1]} 29... Rg8+ {[%clk 0:00:19.6]} 30. Kh2 {[%clk 0:01:00.4]}
30... Qf4+ {[%clk 0:00:18]} 31. Kh3 {[%clk 0:01:00.5]} 31... Qf5+ {[%clk
0:00:13.4]} 32. Kh2 {[%clk 0:01:00.4]} 32... Qf4+ {[%clk 0:00:07.9]} 33. Kh3
{[%clk 0:00:59.8]} 33... Qf5+ {[%clk 0:00:08.5]} 34. Kh2 {[%clk 0:00:56.5]}
1/2-1/2

[Event "Late-Titled-Tuesday-Blitz-April-23-2024"]
[Site "Chess.com"]
[Date "2024.04.23"]
[Round "6"]
[White "PavelShkapenko"]
[Black "zverr1"]
[Result "1-0"]
[WhiteElo "2743"]
[BlackElo "2443"]
[TimeControl "180+1"]
[EndTime "15:07:31 PDT"]
[Termination "PavelShkapenko won by checkmate"]

1. e4 {[%clk 0:03:00.9]} 1... c5 {[%clk 0:02:59.6]} 2. Nc3 {[%clk 0:02:59.5]}
2... Nc6 {[%clk 0:02:59.9]} 3. g3 {[%clk 0:02:59.7]} 3... g6 {[%clk 0:02:59.6]}
4. Bg2 {[%clk 0:03:00.2]} 4... Bg7 {[%clk 0:03:00.3]} 5. d3 {[%clk 0:03:00.5]}
5... e6 {[%clk 0:02:59]} 6. Be3 {[%clk 0:03:00.6]} 6... d6 {[%clk 0:02:57.6]} 7.
Qd2 {[%clk 0:02:59.6]} 7... Rb8 {[%clk 0:02:56.5]} 8. Nge2 {[%clk 0:02:59]} 8...
Nd4 {[%clk 0:02:56.6]} 9. O-O {[%clk 0:02:49.4]} 9... h5 {[%clk 0:02:53.7]} 10.
h3 {[%clk 0:02:48.5]} 10... e5 {[%clk 0:02:49.8]} 11. f4 {[%clk 0:02:45.2]}
11... Ne7 {[%clk 0:02:44.4]} 12. fxe5 {[%clk 0:02:42]} 12... dxe5 {[%clk
0:02:38.8]} 13. Bg5 {[%clk 0:02:42.6]} 13... Qd6 {[%clk 0:02:32.9]} 14. Nxd4
{[%clk 0:02:30.5]} 14... exd4 {[%clk 0:02:24.7]} 15. Nb5 {[%clk 0:02:20.3]}
15... Qd7 {[%clk 0:02:18.1]} 16. Qf4 {[%clk 0:02:16.1]} 16... O-O {[%clk
0:02:06.7]} 17. Qxb8 {[%clk 0:02:15.6]} 17... f6 {[%clk 0:01:48.2]} 18. Nxa7
{[%clk 0:01:39.5]} 18... fxg5 {[%clk 0:01:40.1]} 19. Rxf8+ {[%clk 0:01:39.4]}
19... Bxf8 {[%clk 0:01:40.9]} 20. Nxc8 {[%clk 0:01:38.7]} 20... Nxc8 {[%clk
0:01:41.8]} 21. Qe5 {[%clk 0:01:33.9]} 21... Bd6 {[%clk 0:01:29.3]} 22. Qd5+
{[%clk 0:01:31.4]} 22... Qf7 {[%clk 0:01:24.2]} 23. Qxf7+ {[%clk 0:01:26.4]}
23... Kxf7 {[%clk 0:01:25.1]} 24. e5 {[%clk 0:01:27]} 24... Bxe5 {[%clk
0:01:23.4]} 25. Bxb7 {[%clk 0:01:27.6]} 25... Nb6 {[%clk 0:01:19]} 26. a4 {[%clk
0:01:26.8]} 26... Bb8 {[%clk 0:01:09.6]} 27. a5 {[%clk 0:01:23.3]} 27... Nd7
{[%clk 0:01:10.2]} 28. a6 {[%clk 0:01:15.2]} 28... Ba7 {[%clk 0:00:57.6]} 29.
Re1 {[%clk 0:01:15.1]} 29... Nf6 {[%clk 0:00:48.3]} 30. Bc6 {[%clk 0:01:09]}
30... g4 {[%clk 0:00:36.2]} 31. h4 {[%clk 0:01:09.3]} 31... Bb8 {[%clk
0:00:35.6]} 32. Kg2 {[%clk 0:01:08.8]} 32... Ba7 {[%clk 0:00:35.5]} 33. Re5
{[%clk 0:01:06.8]} 33... Bb8 {[%clk 0:00:34.5]} 34. Rxc5 {[%clk 0:01:06.2]}
34... Ba7 {[%clk 0:00:35]} 35. Rb5 {[%clk 0:01:06.1]} 35... Ke6 {[%clk
0:00:35.4]} 36. Rb7 {[%clk 0:01:06.1]} 36... Bc5 {[%clk 0:00:36.1]} 37. a7
{[%clk 0:01:05.9]} 37... Bxa7 {[%clk 0:00:36.7]} 38. Rxa7 {[%clk 0:01:06.1]}
38... Kd6 {[%clk 0:00:37.1]} 39. Be4 {[%clk 0:01:04.8]} 39... Nxe4 {[%clk
0:00:35.7]} 40. dxe4 {[%clk 0:01:05]} 40... Ke5 {[%clk 0:00:36.6]} 41. Ra6
{[%clk 0:01:04.2]} 41... Kxe4 {[%clk 0:00:37.5]} 42. Rxg6 {[%clk 0:01:04.2]}
42... Ke3 {[%clk 0:00:38.4]} 43. Rd6 {[%clk 0:01:03.5]} 43... Ke4 {[%clk
0:00:39]} 44. Rh6 {[%clk 0:01:03.6]} 44... Ke3 {[%clk 0:00:39]} 45. Rxh5 {[%clk
0:01:03.9]} 45... Ke4 {[%clk 0:00:39.9]} 46. Rh8 {[%clk 0:01:03.5]} 46... d3
{[%clk 0:00:40.8]} 47. cxd3+ {[%clk 0:01:02.9]} 47... Kxd3 {[%clk 0:00:41.1]}
48. Rg8 {[%clk 0:01:03]} 48... Kc2 {[%clk 0:00:42]} 49. Rxg4 {[%clk 0:01:03.1]}
49... Kxb2 {[%clk 0:00:42.9]} 50. Rf4 {[%clk 0:01:02.8]} 50... Kc2 {[%clk
0:00:43.8]} 51. h5 {[%clk 0:01:03]} 51... Kd3 {[%clk 0:00:44.7]} 52. h6 {[%clk
0:01:03.6]} 52... Ke3 {[%clk 0:00:45.6]} 53. h7 {[%clk 0:01:04.2]} 53... Ke2
{[%clk 0:00:46.5]} 54. h8=Q {[%clk 0:01:04.3]} 54... Kd2 {[%clk 0:00:47.4]} 55.
Qd4+ {[%clk 0:01:04.1]} 55... Kc1 {[%clk 0:00:47.8]} 56. Qe3+ {[%clk 0:01:04.2]}
56... Kc2 {[%clk 0:00:48.7]} 57. Rf2+ {[%clk 0:01:04.2]} 57... Kb1 {[%clk
0:00:49.6]} 58. Qe1# {[%clk 0:01:04.3]} 1-0

[Event "Late-Titled-Tuesday-Blitz-April-23-2024"]
[Site "Chess.com"]
[Date "2024.04.23"]
[Round "6"]
[White "h4parah5"]
[Black "baki83"]
[Result "1-0"]
[WhiteElo "3045"]
[BlackElo "2921"]
[TimeControl "180+1"]
[EndTime "15:07:36 PDT"]
[Termination "h4parah5 won by resignation"]

1. Nf3 {[%clk 0:03:00.9]} 1... d5 {[%clk 0:03:00.1]} 2. e3 {[%clk 0:03:00.5]}
2... Nf6 {[%clk 0:03:00.7]} 3. c4 {[%clk 0:03:00.5]} 3... e6 {[%clk 0:03:01.1]}
4. b3 {[%clk 0:03:00.7]} 4... b6 {[%clk 0:03:01.7]} 5. Bb2 {[%clk 0:03:00.8]}
5... Bb7 {[%clk 0:03:02.5]} 6. cxd5 {[%clk 0:03:01.3]} 6... exd5 {[%clk
0:03:01.6]} 7. g3 {[%clk 0:03:01.6]} 7... Bd6 {[%clk 0:02:53.1]} 8. Bg2 {[%clk
0:03:01.2]} 8... Nbd7 {[%clk 0:02:53.2]} 9. O-O {[%clk 0:03:01.5]} 9... O-O
{[%clk 0:02:53.2]} 10. Nc3 {[%clk 0:03:01.7]} 10... a6 {[%clk 0:02:50.9]} 11.
Rc1 {[%clk 0:03:01.1]} 11... Re8 {[%clk 0:02:50.8]} 12. Re1 {[%clk 0:02:59.7]}
12... Nc5 {[%clk 0:02:47.5]} 13. d3 {[%clk 0:02:57.3]} 13... h6 {[%clk
0:02:41.1]} 14. a3 {[%clk 0:02:54.4]} 14... Ncd7 {[%clk 0:02:40.3]} 15. Qc2
{[%clk 0:02:52.2]} 15... c5 {[%clk 0:02:38.3]} 16. d4 {[%clk 0:02:49.7]} 16...
Rc8 {[%clk 0:02:33.5]} 17. dxc5 {[%clk 0:02:48.7]} 17... bxc5 {[%clk 0:02:33.3]}
18. Red1 {[%clk 0:02:44.5]} 18... Qe7 {[%clk 0:02:18.4]} 19. Nh4 {[%clk
0:02:42.3]} 19... Qe6 {[%clk 0:02:18.8]} 20. Nf5 {[%clk 0:02:37.3]} 20... Bf8
{[%clk 0:02:13.2]} 21. Ne2 {[%clk 0:02:30.4]} 21... Qb6 {[%clk 0:01:54.8]} 22.
Nf4 {[%clk 0:02:24.8]} 22... d4 {[%clk 0:01:35.7]} 23. Qb1 {[%clk 0:01:39.5]}
23... Bxg2 {[%clk 0:01:31.7]} 24. Kxg2 {[%clk 0:01:39.7]} 24... Qxb3 {[%clk
0:01:24.1]} 25. exd4 {[%clk 0:01:37.2]} 25... c4 {[%clk 0:01:18.2]} 26. Qc2
{[%clk 0:01:17.6]} 26... Qb7+ {[%clk 0:01:14.1]} 27. d5 {[%clk 0:01:15.3]} 27...
g5 {[%clk 0:00:49.4]} 28. Bxf6 {[%clk 0:01:14.5]} 28... Nxf6 {[%clk 0:00:48.3]}
29. Rb1 {[%clk 0:01:04.9]} 29... Qa8 {[%clk 0:00:19.8]} 30. Rb6 {[%clk
0:01:04.4]} 30... Ne4 {[%clk 0:00:10.3]} 31. Nh5 {[%clk 0:00:59.8]} 31... Re5
{[%clk 0:00:07.9]} 32. Nxh6+ {[%clk 0:00:52.1]} 32... Bxh6 {[%clk 0:00:08]} 33.
Rxh6 {[%clk 0:00:53]} 33... Rce8 {[%clk 0:00:08.1]} 34. f3 {[%clk 0:00:45.4]}
34... Rxd5 {[%clk 0:00:07.2]} 35. Rxd5 {[%clk 0:00:41.4]} 35... Qxd5 {[%clk
0:00:07.4]} 36. fxe4 {[%clk 0:00:41.7]} 1-0

[Event "Late-Titled-Tuesday-Blitz-April-23-2024"]
[Site "Chess.com"]
[Date "2024.04.23"]
[Round "6"]
[White "gorgeous1083"]
[Black "MarlonJodar"]
[Result "0-1"]
[WhiteElo "2085"]
[BlackElo "2268"]
[TimeControl "180+1"]
[EndTime "15:07:39 PDT"]
[Termination "MarlonJodar won by resignation"]

1. d4 {[%clk 0:02:54.4]} 1... Nf6 {[%clk 0:02:58.6]} 2. c4 {[%clk 0:02:54.2]}
2... g6 {[%clk 0:02:58.4]} 3. Nf3 {[%clk 0:02:54.6]} 3... Bg7 {[%clk 0:02:58.1]}
4. Nc3 {[%clk 0:02:55.5]} 4... d5 {[%clk 0:02:58]} 5. cxd5 {[%clk 0:02:54.8]}
5... Nxd5 {[%clk 0:02:58.9]} 6. e4 {[%clk 0:02:53.5]} 6... Nxc3 {[%clk
0:02:59.3]} 7. bxc3 {[%clk 0:02:54.3]} 7... c5 {[%clk 0:02:59.9]} 8. Be3 {[%clk
0:02:54.2]} 8... O-O {[%clk 0:02:58]} 9. h3 {[%clk 0:02:53.7]} 9... Nc6 {[%clk
0:02:57.7]} 10. Be2 {[%clk 0:02:54.2]} 10... cxd4 {[%clk 0:02:55.6]} 11. cxd4
{[%clk 0:02:53.8]} 11... Qa5+ {[%clk 0:02:56.3]} 12. Bd2 {[%clk 0:02:54.4]}
12... Qa3 {[%clk 0:02:53.9]} 13. d5 {[%clk 0:02:46.2]} 13... Bxa1 {[%clk
0:02:34.1]} 14. Qxa1 {[%clk 0:02:45.7]} 14... Nb4 {[%clk 0:02:34.1]} 15. O-O
{[%clk 0:02:24.1]} 15... f6 {[%clk 0:02:33.7]} 16. Qd4 {[%clk 0:02:05.5]} 16...
a5 {[%clk 0:02:16.5]} 17. Bh6 {[%clk 0:02:00.2]} 17... Rd8 {[%clk 0:02:12.1]}
18. Bc4 {[%clk 0:01:56.1]} 18... b5 {[%clk 0:02:01.6]} 19. Bc1 {[%clk
0:01:38.2]} 19... Nc2 {[%clk 0:01:45.1]} 20. Bxa3 {[%clk 0:01:15.3]} 20... Nxd4
{[%clk 0:01:44.7]} 21. Nxd4 {[%clk 0:01:12.5]} 21... bxc4 {[%clk 0:01:44.8]} 22.
Bxe7 {[%clk 0:01:12.4]} 22... Re8 {[%clk 0:01:42.8]} 23. d6 {[%clk 0:01:03.7]}
23... Bd7 {[%clk 0:01:40.8]} 24. Rc1 {[%clk 0:00:58.2]} 24... Rac8 {[%clk
0:01:40.4]} 25. f4 {[%clk 0:00:51.1]} 25... Kf7 {[%clk 0:01:39.8]} 26. e5 {[%clk
0:00:51]} 26... c3 {[%clk 0:01:30.5]} 27. Kf2 {[%clk 0:00:47.7]} 27... f5 {[%clk
0:01:08]} 28. Ke3 {[%clk 0:00:46.8]} 28... Rc4 {[%clk 0:01:06.9]} 29. Kd3 {[%clk
0:00:45.4]} 29... Rec8 {[%clk 0:01:06.7]} 30. Rc2 {[%clk 0:00:40.9]} 30... Be6
{[%clk 0:00:56.4]} 31. Rc1 {[%clk 0:00:35.3]} 31... Ra4 {[%clk 0:00:40.9]} 32.
Rc2 {[%clk 0:00:24.2]} 32... Rcc4 {[%clk 0:00:35]} 33. Bh4 {[%clk 0:00:19.9]}
33... Rxd4+ {[%clk 0:00:33.8]} 34. Kxc3 {[%clk 0:00:18.1]} 34... Rdc4+ {[%clk
0:00:33]} 35. Kd3 {[%clk 0:00:18.4]} 35... Rxc2 {[%clk 0:00:33.8]} 36. Kxc2
{[%clk 0:00:18.6]} 36... Rxa2+ {[%clk 0:00:34.7]} 37. Kb1 {[%clk 0:00:18]} 37...
Rxg2 {[%clk 0:00:35.6]} 0-1